Workbook

Sheet Feuil1
A1: Titre A | B1: Titre B | C1: Titre C | D1: ="Semaine " & COLUMN() - 3 -> Semaine 1 | E1: ="Semaine " & COLUMN() - 3 -> Semaine 2 | F1: ="Semaine " & COLUMN() - 3 -> Semaine 3 | G1: Semaine 4 | H1: Semaine 5 | I1: Semaine 6 | J1: Semaine 7 | K1: Semaine 8 | L1: ="Semaine " & COLUMN() - 3 -> Semaine 9 | M1: Semaine 10 | N1: Semaine 11 | O1: Semaine 12 | P1: Semaine 13 | Q1: Semaine 14 | R1: Semaine 15 | S1: Semaine 16 | T1: Semaine 17 | U1: Semaine 18 | V1: Semaine 19 | W1: Semaine 20 | X1: Semaine 21 | Y1: Semaine 22 | Z1: Semaine 23 | AA1: Semaine 24 | AB1: Semaine 25 | AC1: Semaine 26 | AD1: Semaine 27 | AE1: Semaine 28 | AF1: Semaine 29 | AG1: Semaine 30 | AH1: Semaine 31 | AI1: Semaine 32 | AJ1: Semaine 33 | AK1: Semaine 34 | AL1: Semaine 35 | AM1: Semaine 36 | AN1: Semaine 37 | AO1: Semaine 38 | AP1: Semaine 39 | AQ1: Semaine 40 | AR1: Semaine 41 | AS1: Semaine 42 | AT1: Semaine 43 | AU1: Semaine 44 | AV1: Semaine 45 | AW1: Semaine 46 | AX1: Semaine 47 | AY1: Semaine 48 | AZ1: Semaine 49 | BA1: Semaine 50 | BB1: Semaine 51 | BC1: Semaine 52
D2: =COLUMN() -> 4 | E2: =COLUMN() -> 5 | F2: =COLUMN() -> 6 | G2: =COLUMN() -> 7 | H2: =COLUMN() -> 8 | I2: =COLUMN() -> 9 | J2: =COLUMN() -> 10 | K2: =COLUMN() -> 11 | L2: =COLUMN() -> 12 | M2: =COLUMN() -> 13 | N2: =COLUMN() -> 14 | O2: =COLUMN() -> 15 | P2: =COLUMN() -> 16 | Q2: =COLUMN() -> 17 | R2: =COLUMN() -> 18 | S2: =COLUMN() -> 19 | T2: =COLUMN() -> 20 | U2: =COLUMN() -> 21 | V2: =COLUMN() -> 22 | W2: =COLUMN() -> 23 | X2: =COLUMN() -> 24 | Y2: =COLUMN() -> 25 | Z2: =COLUMN() -> 26 | AA2: =COLUMN() -> 27 | AB2: =COLUMN() -> 28 | AC2: =COLUMN() -> 29 | AD2: =COLUMN() -> 30 | AE2: =COLUMN() -> 31 | AF2: =COLUMN() -> 32 | AG2: =COLUMN() -> 33 | AH2: =COLUMN() -> 34 | AI2: =COLUMN() -> 35 | AJ2: =COLUMN() -> 36 | AK2: =COLUMN() -> 37 | AL2: =COLUMN() -> 38 | AM2: =COLUMN() -> 39 | AN2: =COLUMN() -> 40 | AO2: =COLUMN() -> 41 | AP2: =COLUMN() -> 42 | AQ2: =COLUMN() -> 43 | AR2: =COLUMN() -> 44 | AS2: =COLUMN() -> 45 | AT2: =COLUMN() -> 46 | AU2: =COLUMN() -> 47 | AV2: =COLUMN() -> 48 | AW2: =COLUMN() -> 49 | AX2: =COLUMN() -> 50 | AY2: =COLUMN() -> 51 | AZ2: =COLUMN() -> 52 | BA2: =COLUMN() -> 53 | BB2: =COLUMN() -> 54 | BC2: =COLUMN() -> 55
A3: 15 | D3: =D2*1.25 -> 5 | E3: =E2*1.25 -> 6.25 | F3: 7.5 | G3: 8.75 | H3: 10 | I3: 11.25 | J3: 12.5 | K3: 13.75 | L3: 15 | M3: 16.25 | N3: =N2*1.25 -> 17.5 | O3: =O2*1.25 -> 18.75 | P3: =P2*1.25 -> 20 | Q3: =Q2*1.25 -> 21.25 | R3: =R2*1.25 -> 22.5 | S3: =S2*1.25 -> 23.75 | T3: =T2*1.25 -> 25 | U3: =U2*1.25 -> 26.25 | V3: =V2*1.25 -> 27.5 | W3: =W2*1.25 -> 28.75 | X3: =X2*1.25 -> 30 | Y3: =Y2*1.25 -> 31.25 | Z3: =Z2*1.25 -> 32.5 | AA3: =AA2*1.25 -> 33.75 | AB3: =AB2*1.25 -> 35 | AC3: =AC2*1.25 -> 36.25 | AD3: =AD2*1.25 -> 37.5 | AE3: =AE2*1.25 -> 38.75 | AF3: =AF2*1.25 -> 40 | AG3: =AG2*1.25 -> 41.25 | AH3: =AH2*1.25 -> 42.5 | AI3: =AI2*1.25 -> 43.75 | AJ3: =AJ2*1.25 -> 45 | AK3: =AK2*1.25 -> 46.25 | AL3: =AL2*1.25 -> 47.5 | AM3: =AM2*1.25 -> 48.75 | AN3: =AN2*1.25 -> 50 | AO3: =AO2*1.25 -> 51.25 | AP3: =AP2*1.25 -> 52.5 | AQ3: =AQ2*1.25 -> 53.75 | AR3: =AR2*1.25 -> 55 | AS3: =AS2*1.25 -> 56.25 | AT3: =AT2*1.25 -> 57.5 | AU3: =AU2*1.25 -> 58.75 | AV3: =AV2*1.25 -> 60 | AW3: =AW2*1.25 -> 61.25 | AX3: =AX2*1.25 -> 62.5 | AY3: =AY2*1.25 -> 63.75 | AZ3: =AZ2*1.25 -> 65 | BA3: =BA2*1.25 -> 66.25 | BB3: =BB2*1.25 -> 67.5 | BC3: =BC2*1.25 -> 68.75
D22: Graphique 1 | E22: L'axe des X et toutes les séries ont été définies grâce à des | K22: Graphique 2 | L22: Aucune des données du graphique n'est définie avec un nom de plage.
E23: plages dynamiques PlageL1, PlageL2, PlageL3 définies | L23: Par contre un nom de plage PlageAll a été défini dans le Gestionnaire de noms
E24: dans le Gestionnaire de noms. | L24: et est utilisé dans la macro macro1 activée par le bouton Mise à jour
E25: Le graphique est complètement dynamique | L25: Le graphique est "semi- dynamique" car il faut utiliser le bouton
L26: ou pseudo-dynamique si la macro est exécutée à l'activation de la feuille
L27: ou l'ouverture du classeur.
